Cogmind - Beta 15 @@@ ROGUE MODE // 2025.08.03 @ 15:42:28 Player: the Result: Destroyed by G-50 Soldier with Heavy Laser Performance ------------- Evolutions (5) 2500 Regions Visited (9) 1800 Robots Destroyed (152) 760 Value Destroyed (3555) 3555 Prototype IDs (14) 280 Alien Tech Used (0) 0 Bonus (230) 230 TOTAL SCORE: 9125 Bonus ------- High Alert Combat Kills 50 Follower Combat Kills 180 Cogmind --------- Core Integrity 0/1000 Matter 295/300 Energy 83/100 System Corruption 0% Temperature Cool (27) Movement Core (50) Location -5/Factory Parts ------- > --- POWER (1) -------- (None) > --- PROPULSION (5) --- (None) > --- UTILITY (8) ------ (None) > --- WEAPON (3) ------- (None) > --- INVENTORY (5) ---- Micro Fission Core Improved Coolant Injector Transmission Jammer Lance Peak State ------------ > --- POWER ------------ Cooled Deuterium Engine > --- PROPULSION ------- Cesium-ion Thruster Cesium-ion Thruster Cesium-ion Thruster Cesium-ion Thruster Nuclear Pulse Thruster > --- UTILITY ---------- Structural Scanner Enhanced Optical Array Improved Sensor Array Improved Signal Interpreter Seismic Detector Hacking Suite Improved Hacking Suite > --- WEAPON ----------- Powered Hammer Chainsword Lance > --- INVENTORY -------- Micro Fission Core Cesium-ion Thruster Transmission Jammer [Rating: 58] Favorites ----------- Power Cooled Deuterium Engine Engine Cooled Deuterium Engine Power Core Light Nuclear Core Propulsion Aluminum Leg Leg Aluminum Leg Flight Unit Cesium-ion Thruster Utility Medium Storage Unit Device Seismic Detector Storage Medium Storage Unit Processor Improved Signal Interpreter Hackware Hacking Suite Protection Backup Plating I Weapon Maul Energy Gun Medium Laser Energy Cannon Subdweller Beam Cannon Ballistic Gun Assault Rifle Launcher Grenade Launcher Special Weapon Mining Laser Impact Weapon Maul Slashing Weapon Chainsword Piercing Weapon Lance Build | -11 -10 -9 -9 -8 -7 -7 -7 -6 -5 ------- Run | Yrd Mat Mat Sto Mat Fac Was Fac Fac Fac Slots Evolved 10 | . . 2 . 2 2 . . 2 2 Power . | . . . . . . . . . . Propulsion 3 | . . 1 . 1 . . . 1 . Utility 6 | . . 1 . . 2 . . 1 2 Weapon 1 | . . . . 1 . . . . . Parts Attached 109 | 9 22 12 17 26 14 . 1 5 3 Power 12 | 1 2 2 3 3 1 . . . . Engine 11 | 1 1 2 3 3 1 . . . . Core 1 | . 1 . . . . . . . . Reactor . | . . . . . . . . . . Propulsion 32 | 2 7 3 6 10 1 . . 2 1 Treads . | . . . . . . . . . . Leg 24 | 2 7 3 6 6 . . . . . Wheel . | . . . . . . . . . . Hover . | . . . . . . . . . . Flight 8 | . . . . 4 1 . . 2 1 Utility 34 | 3 4 2 3 8 9 . 1 2 2 Device 18 | 2 3 1 2 3 5 . . 1 1 Storage 5 | 1 1 1 1 . . . 1 . . Processor 7 | . . . . 2 4 . . 1 . Hackware 2 | . . . . 1 . . . . 1 Protection 2 | . . . . 2 . . . . . Artifact . | . . . . . . . . . . Weapon 31 | 3 9 5 5 5 3 . . 1 . Energy Gun 12 | 2 5 2 2 1 . . . . . Energy Cannon 2 | . 1 . 1 . . . . . . Ballistic Gun 3 | 1 1 1 . . . . . . . Ballistic Cannon . | . . . . . . . . . . Launcher 2 | . 1 . . 1 . . . . . Special Weapon 1 | . 1 . . . . . . . . Impact Weapon 7 | . . 2 2 2 1 . . . . Slashing Weapon 3 | . . . . 1 2 . . . . Piercing Weapon 1 | . . . . . . . . 1 . Special Melee Weapon . | . . . . . . . . . . Unidentified Prototypes 8 | . . 2 4 2 . . . . . Parts Lost 33 | . 3 2 11 6 2 . . 1 8 Power 4 | . 1 . 1 1 1 . . . . Propulsion 19 | . 1 1 7 4 . . . 1 5 Utility 8 | . 1 1 2 1 1 . . . 2 Weapon 2 | . . . 1 . . . . . 1 Highest Loss Streak 7 | . 3 1 2 2 2 . . 1 7 To Critical Strikes 1 | . . . 1 . . . . . . Average Backups 8 | 3 9 12 10 9 4 5 5 4 4 Power . | . . 1 1 1 . . . . 1 Propulsion 1 | 1 3 2 1 1 3 3 2 1 . Utility 1 | . 2 2 1 2 . 1 1 1 1 Weapon 3 | 1 3 4 6 4 1 1 1 . . Tool/Special . | . . . . . . . . . . Unused Backups 29 | . 5 5 3 7 1 . 2 3 3 Power 2 | . . . . 1 . . . . 1 Propulsion 4 | . 2 . . . . . 1 1 . Utility 11 | . 3 1 . 2 1 . 1 1 2 Weapon 11 | . . 4 2 4 . . . 1 . Tool/Special 1 | . . . 1 . . . . . . Average Slot Usage (%) 92 | . 99 89 86 94 90 92 92 97 78 Engine 9 | . 12 11 10 8 7 7 7 6 3 Leg 23 | . 27 32 28 31 . . . . . Flight 6 | . . . . 3 30 30 30 33 24 Device 11 | . 13 12 12 1 15 15 14 19 14 Storage 9 | . 14 11 11 8 . . . . . Processor 3 | . . . . 2 13 15 15 13 10 Hackware 2 | . . . . 6 7 7 7 6 6 Protection 1 | . . . 2 4 . . . . . Energy Gun 6 | . 25 4 . . . . . . . Energy Cannon 1 | . 1 4 3 . . . . . . Impact Weapon 10 | . . 12 18 18 2 7 7 6 3 Slashing Weapon 2 | . . . . 7 12 7 7 6 4 Peak Build Rating 58 | 7 11 14 19 34 43 39 39 53 58 Average Rating 19 | 5 8 12 13 24 38 39 38 48 46 On Entrance 24 | . 7 9 14 15 31 39 39 38 53 Naked Turns 5 | . . . . . . . . . 5 Heaviest Build 38 | 11 26 34 35 38 20 19 23 23 23 Greatest Support 45 | 20 20 33 33 45 20 20 20 26 26 Greatest Overweight (x) 2 | . 1 1 2 1 . . 1 . . Average Overweight (x) . | . . . . . . . . . . Largest Inventory Capacity 15 | 8 10 15 15 10 5 5 8 8 5 Average Capacity 9 | 7 9 13 11 9 5 5 5 5 5 Most Carried 15 | 6 10 15 15 10 5 5 7 6 5 Average Carried 8 | 3 9 12 10 9 4 5 5 4 4 Final Capacity 15 | 8 10 15 10 5 5 5 8 5 5 Final Carried 15 | 6 10 15 10 5 5 5 7 4 4 Class Distribution -------------------- 58% | Mutant 23% | Scavenger-Mutant 11% | Scout 4% | Sprinter Dominant Class ---------------- Mutant | -10/Materials Scavenger-Mutant | -9/Materials Mutant | -9/Storage Mutant | -8/Materials Sprinter | -7/Factory Scout | -7/Waste Scout | -7/Factory Scout | -6/Factory Scout | -5/Factory Resources | -11 -10 -9 -9 -8 -7 -7 -7 -6 -5 ----------- Run | Yrd Mat Mat Sto Mat Fac Was Fac Fac Fac Matter Collected 1766 | 290 395 200 255 415 144 . . 67 . Remotely . | . . . . . . . . . . Salvage Created 5576 | 186 901 649 1838 1159 239 . 230 374 . Parts 245 | 17 47 27 54 59 16 . 14 11 . Haulers Intercepted 18 | . 2 2 6 2 3 . 1 2 . Recyclers Shooed 1 | . . . . . . . 1 . . Parts Field Recycled . | . . . . . . . . . . Retrieved Matter . | . . . . . . . . . . Parts Self-Destructed . | . . . . . . . . . . Prevented . | . . . . . . . . . . Kills | -11 -10 -9 -9 -8 -7 -7 -7 -6 -5 ------- Run | Yrd Mat Mat Sto Mat Fac Was Fac Fac Fac Combat Hostiles Destroyed 79 | . 15 11 26 26 . . . 1 . Melee 28 | . . 5 10 12 . . . 1 . Guns 10 | . 10 . . . . . . . . Cannons 7 | . . 3 4 . . . . . . AOE 9 | . 3 . . 6 . . . . . Classes Destroyed 13 | 3 6 1 . 3 . . . . . Worker 13 | 1 2 2 5 1 . . . 2 . Builder 7 | . 2 . . 3 2 . . . . Tunneler 14 | 5 1 1 1 3 2 . 1 . . Hauler 18 | . 2 2 6 2 3 . 1 2 . Recycler 9 | 1 1 2 3 . . . 2 . . Mechanic 3 | . 1 . 1 1 . . . . . Operator 2 | . . . . 1 . . 1 . . Watcher 7 | . 1 . 1 3 . . . 2 . Swarmer 13 | . 3 4 . 6 . . . . . Grunt 43 | . 12 4 15 12 . . . . . Duelist 1 | . . . . 1 . . . . . Sentry 19 | . . 3 11 5 . . . . . Hunter 3 | . . . . 2 . . . 1 . Best Kill Streak 10 | 4 6 5 7 10 4 . 1 2 . Combat Bots Only 6 | . 5 4 5 6 . . . 1 . Max Kills in Single Turn 3 | 1 2 2 1 3 1 . 1 1 . Gunslinging . | . . . . . . . . . . Exploded 2 | . 1 . . 2 . . . . . Melee 1 | . . 1 1 1 . . . 1 . Uniques/NPCs Destroyed . | . . . . . . . . . . Combat | -11 -10 -9 -9 -8 -7 -7 -7 -6 -5 -------- Run | Yrd Mat Mat Sto Mat Fac Was Fac Fac Fac Hostile Shots Fired 440 | . 69 43 99 124 . . . 4 101 Missed 130 | . 20 12 26 39 . . . 2 31 Hits 310 | . 49 31 73 85 . . . 2 70 Melee 20 | . . . . . . . . . 20 Projectile 290 | . 49 31 73 85 . . . 2 50 AOE 1 | . . . . . . . . . 1 Critical Strikes 23 | . . 1 6 4 . . . . 12 Damage Taken 4987 | . 684 386 997 1378 135 . 14 30 1363 Core 1799 | . 149 101 230 249 70 . . . 1000 Absorbed by Shields . | . . . . . . . . . . Regen/Repaired (Parts) 228 | . 22 . 96 46 21 . . 43 . Core Remaining (%) 66 | 100 40 . 17 54 . . 90 100 . Volleys Fired 151 | 14 81 17 29 10 . . . . . Largest 2 | 2 2 2 1 1 . . . . . Hottest 136 | 80 100 136 80 30 . . . . . Shots Fired 241 | 28 144 31 28 10 . . . . . Gun 172 | 28 130 14 . . . . . . . Cannon 45 | . . 17 28 . . . . . . Launcher 16 | . 6 . . 10 . . . . . Special 8 | . 8 . . . . . . . . Kinetic . | . . . . . . . . . . Thermal 225 | 28 138 31 28 . . . . . . Explosive 16 | . 6 . . 10 . . . . . Electromagnetic . | . . . . . . . . . . Robot Hit Streak 11 | 9 11 5 4 5 . . . . . Robot Miss Streak 5 | 2 5 3 3 1 . . . . . Penetration Max . | . . . . . . . . . . Secondary Targets 2 | . 2 . . . . . . . . Max Gunslinging Chain 1 | . 1 . . . . . . . . Shots Hit Robots 326 | 17 87 32 89 68 12 . 8 12 1 Core Hits 126 | 8 44 12 20 30 4 . 5 3 . Critical Kills 9 | . . 1 5 2 . . 1 . . Critical Parts Destroyed 29 | . . 5 12 11 . . . 1 . Critical Strikes 51 | . 6 9 17 16 . . 1 2 . Burn 7 | . 6 1 . . . . . . . Meltdown 2 | . . . 2 . . . . . . Smash 40 | . . 8 15 15 . . 1 1 . Sever 1 | . . . . 1 . . . . . Impale 1 | . . . . . . . . 1 . Melee Attacks 353 | . . 31 116 99 31 . 27 34 15 Impact 252 | . . 31 116 77 6 . 12 9 1 Slashing 72 | . . . . 22 25 . 15 5 5 Piercing 29 | . . . . . . . . 20 9 Sneak Attacks 44 | . . 3 15 8 8 . 4 6 . Combat Hostiles 1 | . . . . . . . . 1 . Follow-up Attacks 35 | . . 4 7 19 1 . 1 2 1 Damage Inflicted 12488 | 189 1275 1143 3878 3788 845 . 501 828 41 Guns 1350 | 189 1066 95 . . . . . . . Cannons 640 | . . 218 422 . . . . . . Explosions 1117 | . 209 . . 908 . . . . . Melee 9377 | . . 830 3456 2880 845 . 501 828 37 Ramming 4 | . . . . . . . . . 4 Kinetic . | . . . . . . . . . . Thermal 1990 | 189 1066 313 422 . . . . . . Explosive 1117 | . 209 . . 908 . . . . . Electromagnetic . | . . . . . . . . . . Impact 7717 | . . 830 3456 2564 211 . 304 352 . Slashing 1275 | . . . . 316 634 . 197 91 37 Piercing 385 | . . . . . . . . 385 . Highest Corruption 2 | . . . . . 2 2 2 1 . Average Corruption 1 | . . . . . 1 2 2 1 . Corruption Purged . | . . . . . . . . . . Corruption Blocked . | . . . . . . . . . . Effects 11 | . . . . . 3 3 5 . . Message Errors 3 | . . . . . . 2 1 . . Matter Fused 2 | . . . . . 1 . 1 . . Energy Discharges 3 | . . . . . 1 1 1 . . Data Loss (minor) 2 | . . . . . . . 2 . . Data Loss (major) 1 | . . . . . 1 . . . . Overload Shots . | . . . . . . . . . . Overflow Damage 2919 | . 8 376 1171 848 158 . 48 310 . Projectiles . | . . . . . . . . . . Explosions 26 | . 8 . . 18 . . . . . Melee 2893 | . . 376 1171 830 158 . 48 310 . Knockbacks 20 | . . . 12 6 . . . 2 . Impact 19 | . . . 11 6 . . . 2 . Kinetic . | . . . . . . . . . . Secondary 1 | . . . 1 . . . . . . Self-Inflicted Damage 139 | . 60 . . 77 . . . . 2 Shots 7 | . 3 . . 4 . . . . . Rammed 3 | . . . . . . . . . 3 Targets Rammed 3 | . . . . . . . . . 3 Kicked . | . . . . . . . . . . Crushed . | . . . . . . . . . . Highest Temperature 369 | 126 369 162 150 15 . . . . . Average Temperature 67 | 44 82 58 48 7 . . . . . Received Heat Transfer 1584 | . 303 102 555 477 . . . . 147 Effects 3 | . 3 . . . . . . . . Interference 3 | . 3 . . . . . . . . Siege Activations . | . . . . . . . . . . Martial Activations . | . . . . . . . . . . Shielding Activations . | . . . . . . . . . . Robots Disrupted . | . . . . . . . . . . Combat Hostiles . | . . . . . . . . . . Robots Corrupted 34 | . . 4 16 12 . . . 2 . Combat Hostiles 21 | . . 3 10 8 . . . . . Parts Fried 53 | . . 7 26 18 . . . 2 . Impact Corruptions 102 | . . 15 47 34 1 . . 5 . Robots Melted 4 | . 2 . 2 . . . . . . Combat Hostiles 4 | . 2 . 2 . . . . . . Parts Melted 15 | 2 7 1 5 . . . . . . Heat Transferred 4997 | 425 3388 629 555 . . . . . . Parts Sabotaged . | . . . . . . . . . . Parts Stolen . | . . . . . . . . . . Parts Stripped . | . . . . . . . . . . Power Chain Reactions . | . . . . . . . . . . Alert | -11 -10 -9 -9 -8 -7 -7 -7 -6 -5 ------- Run | Yrd Mat Mat Sto Mat Fac Was Fac Fac Fac Maximum Alert Level 2 | . . . 1 2 . . . . . Low Security (%) 74 | 100 100 100 71 8 100 100 100 100 100 Level 1 19 | . . . 28 58 . . . . . Level 2 6 | . . . . 33 . . . . . Level 3 . | . . . . . . . . . . Level 4 . | . . . . . . . . . . Level 5 . | . . . . . . . . . . High Security . | . . . . . . . . . . Max Security . | . . . . . . . . . . Peak Influence 452 | 10 127 125 312 452 167 54 35 42 45 Initial 120 | . 3 18 49 120 119 54 . . . Average 122 | 1 58 56 129 310 121 20 10 12 4 Influence Increases 3456 | 35 546 364 1017 884 208 55 130 141 76 Destroy 0b10 Robot/C 1580 | . 300 220 520 520 . . . 20 . Destroy 0b10 Robot/NC 380 | 35 50 35 100 70 35 . 25 30 . Destroy Leader 460 | . 76 54 164 140 6 . 2 18 . Successful Hack 194 | . 32 11 23 12 68 . 19 29 . Disable Machine 225 | . . . 75 30 60 . 45 15 . Destroy Structure 212 | . 28 14 15 52 9 55 9 14 16 Partial Spotted 105 | . . . . 15 30 . 30 15 15 Lose Combat Pursuer 300 | . 60 30 120 45 . . . . 45 Influence Decreases 3446 | 30 506 291 850 905 315 212 130 139 68 Entered New Map 513 | . 2 27 69 165 145 103 . . 2 Time Decay 2280 | 30 474 244 561 510 150 42 130 119 20 Lost Part 276 | . 30 20 90 60 20 . . 10 46 Lost Ally 97 | . . . . 20 . 67 . 10 . Purge Threat 280 | . . . 130 150 . . . . . Squads Dispatched 25 | . 4 1 2 6 2 . 2 5 3 Investigation 14 | . 4 . 1 4 1 . . 2 2 Extermination 5 | . . . . . 1 . 2 2 . Reinforcement 5 | . . 1 . 2 . . . 1 1 Assault . | . . . . . . . . . . Garrison 1 | . . . 1 . . . . . . Intercept . | . . . . . . . . . . Searches Triggered . | . . . . . . . . . . Construction Impeded 1 | . . . . 1 . . . . . Haulers Reinforced 1 | . . . . . . . . 1 . Active Scanning Responses . | . . . . . . . . . . Cargo Convoy Interrupts . | . . . . . . . . . . Stealth | -11 -10 -9 -9 -8 -7 -7 -7 -6 -5 --------- Run | Yrd Mat Mat Sto Mat Fac Was Fac Fac Fac Distress Signals 12 | . 1 1 6 3 . . . 1 . Communications Jammed . | . . . . . . . . . . Distress Signals . | . . . . . . . . . . Times Spotted 167 | . 29 15 40 46 1 2 3 5 26 Peak Tracking Total 23 | . 5 5 5 8 1 1 1 2 23 Tactical Retreats 12 | . 2 1 5 3 . . . . 1 Traps | -11 -10 -9 -9 -8 -7 -7 -7 -6 -5 ------- Run | Yrd Mat Mat Sto Mat Fac Was Fac Fac Fac Traps Triggered 10 | . 4 . 1 2 3 . . . . Indirectly . | . . . . . . . . . . Trap Hack Attempts . | . . . . . . . . . . Triggered . | . . . . . . . . . . Disarmed . | . . . . . . . . . . Reprogrammed . | . . . . . . . . . . Reused . | . . . . . . . . . . Traps Extracted . | . . . . . . . . . . Installed . | . . . . . . . . . . Triggered . | . . . . . . . . . . Machines | -11 -10 -9 -9 -8 -7 -7 -7 -6 -5 ---------- Run | Yrd Mat Mat Sto Mat Fac Was Fac Fac Fac Machines Disabled 15 | . . . 5 2 4 . 3 1 . Max in Single Turn 1 | . . . 1 1 1 . 1 1 . Garrison Access 3 | . . . 1 1 1 . . . . Machines Repaired . | . . . . . . . . . . Machines Dismantled . | . . . . . . . . . . Machines Sabotaged . | . . . . . . . . . . Overloaded Fab Kills . | . . . . . . . . . . Hacking | -11 -10 -9 -9 -8 -7 -7 -7 -6 -5 --------- Run | Yrd Mat Mat Sto Mat Fac Was Fac Fac Fac Machines Accessed 71 | . 9 6 10 9 13 . 13 9 2 Terminals 40 | . 6 5 5 5 6 . 8 4 1 Fabricators 6 | . . . . . 2 . 2 2 . Repair Stations 6 | . 1 . 2 1 1 . . 1 . Recycling Units 9 | . 2 1 2 1 . . 1 2 . Scanalyzers 5 | . . . . 1 2 . 1 . 1 Garrison Access 5 | . . . 1 1 2 . 1 . . Total Hacks 183 | . 22 18 36 28 31 . 22 17 9 Successful 87 | . 12 7 19 18 13 . 7 8 3 Failed 96 | . 10 11 17 10 18 . 15 9 6 Catastrophic 16 | . 2 2 . 2 5 . 4 1 . Database Lockouts . | . . . . . . . . . . Manual 64 | . 13 8 13 7 5 . 12 6 . Terminals 114 | . 17 16 22 16 17 . 14 9 3 Fabricators 9 | . . . . . 2 . 4 3 . Repair Stations 16 | . 2 . 7 2 3 . . 2 . Recycling Units 15 | . 3 2 5 1 . . 1 3 . Scanalyzers 18 | . . . . 7 4 . 1 . 6 Garrison Access 11 | . . . 2 2 5 . 2 . . Terminal Hacks 36 | . 5 5 9 8 4 . 2 3 . Part Schematic 5 | . 1 . 1 . . . 1 2 . Robot Analysis 7 | . 3 1 . 2 . . 1 . . Prototype ID Bank 5 | . . 1 3 1 . . . . . Open Door 1 | . . . 1 . . . . . . Branch Access Points 2 | . . 1 . . 1 . . . . Alert Level 2 | . . . . 2 . . . . . Unreport Threat 2 | . . . 1 1 . . . . . Locate Traps 2 | . . . 1 . 1 . . . . Recall Investigation 1 | . . . . . . . . 1 . Hauler Manifests 3 | . 1 1 1 . . . . . . Registered Components 2 | . . . . 1 1 . . . . Zone Layout 4 | . . 1 1 1 1 . . . . Fabricator Hacks 5 | . . . . . 1 . 2 2 . Network Status 2 | . . . . . 1 . 1 . . Load Schematic 2 | . . . . . . . 1 1 . Build 1 | . . . . . . . . 1 . Repair Station Hacks 14 | . 2 . 6 2 2 . . 2 . Scan Component 7 | . 1 . 3 1 1 . . 1 . Repair 6 | . 1 . 2 1 1 . . 1 . Refit 1 | . . . 1 . . . . . . Recycling Unit Hacks 7 | . 2 1 1 1 . . 1 1 . Retrieve Components 7 | . 2 1 1 1 . . 1 1 . Scanalyzer 13 | . . . . 6 4 . . . 3 Insert Component 7 | . . . . 3 2 . . . 2 Analyze 6 | . . . . 3 2 . . . 1 Garrison Access Hacks 3 | . . . 1 1 1 . . . . Seal Access 3 | . . . 1 1 1 . . . . Unauthorized Hacks 9 | . 3 1 2 . 1 . 2 . . Terminals 9 | . 3 1 2 . 1 . 2 . . Assimilate 3 | . . . . . 1 . 2 . . Botnet 6 | . 3 1 2 . . . . . . Fabricators . | . . . . . . . . . . Repair Stations . | . . . . . . . . . . Recycling Units . | . . . . . . . . . . Scanalyzers . | . . . . . . . . . . Garrison Access . | . . . . . . . . . . Data Cores Recovered . | . . . . . . . . . . Used . | . . . . . . . . . . Hacking Detections 63 | . 8 5 8 7 13 . 12 8 2 Full Trace Events 9 | . 2 . . 2 1 . . 2 2 Feedback Events 2 | . . . . . . . . 1 1 Corruption 1 | . . . . . . . . 1 . Hackware Fried 1 | . . . . . . . . . 1 Feedback Blocked . | . . . . . . . . . . Robot Schematics Acquired . | . . . . . . . . . . Robots Built . | . . . . . . . . . . Authchips . | . . . . . . . . . . Time . | . . . . . . . . . . Total Robot Build Rating . | . . . . . . . . . . Part Schematics Acquired 11 | . 1 . 1 3 2 . 1 2 1 Parts Built 1 | . . . . . . . . 1 . Authchips . | . . . . . . . . . . Time 95 | . . . . . . . . 95 . Total Part Build Rating 5 | . . . . . . . . 5 . Parts Repaired 6 | . 1 . 2 1 1 . . 1 . Time 156 | . 26 . 45 38 19 . . 28 . Parts Recycled . | . . . . . . . . . . Recycled Matter . | . . . . . . . . . . Retrieved Matter . | . . . . . . . . . . Retrieved Components 32 | . 1 9 10 10 . . . 2 . Parts Scanalyzed 7 | . . . . 3 2 . . . 2 Part Schematics Acquired 6 | . . . . 3 2 . . . 1 Parts Damaged . | . . . . . . . . . . Bothacking | -11 -10 -9 -9 -8 -7 -7 -7 -6 -5 ------------ Run | Yrd Mat Mat Sto Mat Fac Was Fac Fac Fac Used RIF Installer . | . . . . . . . . . . Robots Hacked . | . . . . . . . . . . Non-combat . | . . . . . . . . . . Combat . | . . . . . . . . . . Robot Hacks Applied . | . . . . . . . . . . Relay Couplers Released . | . . . . . . . . . . Fabnet Peak Effective % . | . . . . . . . . . . Robots Rewired 1 | . . . . . . . . 1 . Allies Hacked . | . . . . . . . . . . Hacks Repelled . | . . . . . . . . . . Allies | -11 -10 -9 -9 -8 -7 -7 -7 -6 -5 -------- Run | Yrd Mat Mat Sto Mat Fac Was Fac Fac Fac Total Allies 23 | . . . . . . 20 2 1 . Largest Group 20 | . . . . . . 20 2 3 . Highest-Rated Group 495 | . . . . . . 495 36 68 . Highest-Rated Ally 35 | . . . . . . 35 26 32 . Total Orders 1 | . . . . 1 . . . . . EXPLORE 1 | . . . . 1 . . . . . Ally Attacks 128 | . . . . . . 127 . 1 . Total Damage 3619 | . . . . . . 3594 . 25 . Kills 10 | . . . . . . 10 . . . Allies Corrupted . | . . . . . . . . . . Allies Melted . | . . . . . . . . . . Intel | -11 -10 -9 -9 -8 -7 -7 -7 -6 -5 ------- Run | Yrd Mat Mat Sto Mat Fac Was Fac Fac Fac Active Infowar (turns) 5088 | 70 1438 384 1706 192 300 158 342 333 165 Optics 1092 | . . . . . 94 158 342 333 165 Sensors 1189 | . . . . 79 171 158 309 330 142 Structural 1491 | . . . 320 . 196 158 342 333 142 Seismic 4169 | 70 1438 384 1706 113 . . . 332 126 T.N.C. 79 | . . . . . 79 . . . . Robot Analysis Total 7 | . 3 1 . 2 . . 1 . . Derelict Logs Recovered . | . . . . . . . . . . Drone Launches 2 | . . . . 2 . . . . . Drone Recoveries . | . . . . . . . . . . Exploration | -11 -10 -9 -9 -8 -7 -7 -7 -6 -5 ------------- Run | Yrd Mat Mat Sto Mat Fac Was Fac Fac Fac Turns Passed 7218 | 130 1793 534 2053 1399 300 158 342 333 176 Spaces Moved 6576 | 59 1015 294 980 918 694 437 923 866 390 Core 29 | 3 . . . . . . . . 26 Treads . | . . . . . . . . . . Legs 3060 | 56 1015 294 980 715 . . . . . Wheels . | . . . . . . . . . . Hover . | . . . . . . . . . . Flight 3487 | . . . . 203 694 437 923 866 364 Fastest Speed 23 | 50 120 120 120 26 26 26 26 23 24 Average Speed 76 | 116 126 120 149 105 26 26 28 23 26 Slowest Speed 260 | 120 190 190 260 190 26 26 106 24 50 Overloaded Moves . | . . . . . . . . . . Propulsion Burnouts . | . . . . . . . . . . Robots Hopped 14 | . . . . 2 . . 1 4 7 Potential Cave-ins 2 | . 2 . . . . . . . . Cave-ins Triggered 1 | . . . . 1 . . . . . Exploration Rate (%) 47 | 5 94 28 96 68 21 90 31 24 17 Regions Visited 9 Branch Regions 1 Pre-discovered Areas . | . . . . . . . . . . Known Exits Taken 4 | . . 1 . 1 . . 1 1 . Unknown Exits Taken 3 | 1 1 . 1 . . . . . . Scrap Searched . | . . . . . . . . . . Spaces Dug 96 | . 26 11 7 12 9 . 9 14 8 Terrain Destroyed 195 | . 49 15 15 76 9 . 9 14 8 Melee 62 | . . 6 4 12 9 . 9 14 8 Projectile 27 | . 7 9 11 . . . . . . AOE 106 | . 42 . . 64 . . . . . Terrain Rammed . | . . . . . . . . . . Walls Destroyed . | . . . . . . . . . . Machines Disabled . | . . . . . . . . . . Actions | -11 -10 -9 -9 -8 -7 -7 -7 -6 -5 --------- Run | Yrd Mat Mat Sto Mat Fac Was Fac Fac Fac Total 8011 | 88 1370 395 1347 1205 769 480 968 954 435 Wait 648 | 1 192 9 194 116 18 44 15 30 29 Move 6542 | 58 1014 293 979 913 694 436 920 857 378 Hop 12 | . . . . 2 . . 1 4 5 Pick Up 90 | 5 22 13 10 24 4 . 5 6 1 Fast Attach 50 | 8 3 5 7 12 12 . 1 1 1 Attach 34 | . 2 5 8 10 2 . . 4 3 Detach 10 | 1 . 6 . 1 . . . . 2 Swap 65 | 1 30 10 12 11 . . . 1 . Drop 106 | . 26 13 10 37 11 . 4 5 . Fire 151 | 14 81 17 29 10 . . . . . Melee 279 | . . 24 98 69 28 . 22 25 13 Ram 3 | . . . . . . . . . 3 Kick . | . . . . . . . . . . Crush . | . . . . . . . . . . Escape Stasis . | . . . . . . . . . . Rewire 21 | . . . . . . . . 21 . Trap . | . . . . . . . . . . Miscellaneous . | . . . . . . . . . . Route ------- -11/Scrapyard -10/Materials (discovered 5 exits: *Mat x3 / [*Min] / [*Sub]) -9/Materials (discovered 4 exits: *Min x2 / *Sto x2) -9/Storage (discovered 2 exits: *Mat / [*Rec]) -8/Materials (discovered 2 exits: *Fac x2) -7/Factory (discovered 2 exits: Low x2) -7/Waste -7/Factory (discovered 3 exits: *Fac x2 / *Low) -6/Factory (discovered 2 exits: *Fac x2) -5/Factory History --------- Turn | Location | Event 2 | -11/Scrapyard | Met Revision 17 4 | -11/Scrapyard | Discovered new exit (range 16) 131 | -11/Scrapyard | Entered Materials 333 | -10/Materials | Build established: Mutant 502 | -10/Materials | Discovered new exit (range 8) 737 | -10/Materials | Lost 3 parts (1p1n1u) 760 | -10/Materials | Discovered new exit (range 16) 860 | -10/Materials | Discovered new exit (range 12) 1057 | -10/Materials | Discovered new exit (range 14) 1231 | -10/Materials | Derelicts attacked the area 1416 | -10/Materials | Discovered new exit (range 6) 1552 | -10/Materials | Core integrity fell below 50% 1751 | -10/Materials | Repaired Grenade Launcher 1924 | -10/Materials | Entered another Materials area 1924 | -9/Materials | Evolved 2 slots: Propulsion x1, Utility x1 2059 | -9/Materials | Build established: Scavenger-Mutant 2144 | -9/Materials | Discovered new exit (range 6) 2173 | -9/Materials | Identified exit to Mines 2173 | -9/Materials | Identified exit to Storage 2458 | -9/Materials | Entered Storage 2796 | -9/Storage | Garrison activated, responded to threat 2979 | -9/Storage | Core integrity fell below 50% 3021 | -9/Storage | Build established: Mutant 3719 | -9/Storage | Discovered new exit (range 16) 3882 | -9/Storage | Core integrity fell below 20% 4155 | -9/Storage | Used back door to open Recycling access 4155 | -9/Storage | Discovered new exit (range 5) 4375 | -9/Storage | Repaired Seismic Detector 4447 | -9/Storage | Repaired Maul 4511 | -9/Storage | Entered Materials 4511 | -8/Materials | Evolved 2 slots: Propulsion x1, Weapon x1 4535 | -8/Materials | Build established: Scavenger-Mutant 5068 | -8/Materials | Build established: Mutant 5209 | -8/Materials | Crushed by falling debris 5439 | -8/Materials | Discovered new exit (range 3) 5762 | -8/Materials | Repaired Great Maul 5836 | -8/Materials | Identified exit to Factory 5894 | -8/Materials | Discovered exit to Factory (range 11) 5910 | -8/Materials | Entered Factory 5910 | -7/Factory | Evolved 2 slots: Utility x2 6080 | -7/Factory | Repaired Cesium-ion Thruster 6101 | -7/Factory | Identified exit to Lower Caves 6148 | -7/Factory | Build established: Sprinter 6210 | -7/Factory | Sucked down chute 6210 | -7/Factory | Entered Waste 6211 | -7/Waste | Met a frightened Derelict 6214 | -7/Waste | Spotted C-40 Crusher 6214 | -7/Waste | Spotted C-40 Crusher 6217 | -7/Waste | Spotted C-40 Crusher 6221 | -7/Waste | Spotted C-40 Crusher 6237 | -7/Waste | Allies destroyed C-40 Crusher 6261 | -7/Waste | Spotted C-40 Crusher 6267 | -7/Waste | Warlord forces began an assault 6294 | -7/Waste | Allies destroyed C-40 Crusher 6308 | -7/Waste | Allies destroyed C-40 Crusher 6310 | -7/Waste | Allies destroyed C-40 Crusher 6313 | -7/Waste | Allies destroyed C-40 Crusher 6322 | -7/Waste | Spotted C-40 Crusher 6325 | -7/Waste | Discovered new exit (range 12) 6329 | -7/Waste | Allies destroyed C-40 Crusher 6357 | -7/Waste | Lost 7 allies 6367 | -7/Waste | Identified exit to Factory 6368 | -7/Waste | Entered Factory 6432 | -7/Factory | Discovered new exit (range 15) 6436 | -7/Factory | Identified exit to Factory 6453 | -7/Factory | Build established: Scout 6552 | -7/Factory | Discovered exit to Lower Caves (range 18) 6647 | -7/Factory | Discovered exit to Factory (range 14) 6710 | -7/Factory | Entered another Factory area 6710 | -6/Factory | Accompanied by 2 allies 6710 | -6/Factory | Evolved 2 slots: Propulsion x1, Utility x1 6911 | -6/Factory | Fabricated Imp. Hacking Suite? 6958 | -6/Factory | Discovered new exit (range 18) 7001 | -6/Factory | Repaired Mic. Fission Core? 7040 | -6/Factory | Discovered new exit (range 11) 7042 | -6/Factory | Identified exit to Factory 7043 | -6/Factory | Entered another Factory area 7043 | -5/Factory | Evolved 2 slots: Utility x2 7078 | -5/Factory | Imp. Hacking Suite fried by hacking feedback 7211 | -5/Factory | Core integrity fell below 50% 7217 | -5/Factory | Core integrity fell below 20% 7219 | -5/Factory | Destroyed by G-50 Soldier with Heavy Laser Last Messages --------------- 07185_ Cesium-ion Thruster destroyed. 07187_ Imp. Reaction Control System severed. 07191_ Structural Scanner destroyed. 07194_ Cesium-ion Thruster destroyed. 07194_ Chainsword destroyed. 07196_ Connecting with Terminal... 07196_ ALERT: Suspicious activity at Terminal F018. Dispatching Investigation squad. 07199_ K-01 Serf cleans the Subcomponent Replicator. 07201_ Nuclear Pulse Thruster destroyed. 07203_ Imp. Sensor Array severed. 07208_ Enh. Optical Array severed. 07209_ Slammed into C-35 Carver. 07211_ Slammed into S-27 Virus. 07211_ Hacking Suite severed. 07212_ Imp. Signal Interpreter severed. 07217_ S-27 Virus destroyed. 07217_ Penetrated by Slug. 07217_ Cesium-ion Thruster destroyed. Map ----- +----------------------------------------------------+ | ??????????????????????????????????????? ???????? | | ????????????????????????????????????? ???????? | | ????????????????????????????????????# ???????? | | ????????????????????????????????????# ???????? | | ????????????????????????????????????# #??????? | | ????????????????????????????????????# #??????? | | ????????????????????????????????????# #??????? | | ????????????????????????????????????# #??????? | | ????????????????????????????????????# #??????? | | ????????????????????????????????????# #??????? | | ????????????????????????????????????# #??????? | | ????????????????????????????????????# #??????? | | ????????????????????????????????????# #??????? | | ???????????????????????????#???????## ######## | | ???????????????????????????# """""" # # | | ???????????????????????????# """""" # # | | ???????????????????????????# """""" # # | | ???????????????????????????# """""" # # | | ???????????????????????????# # # """"" | | ???????????????????????????# # # """"" | | ???????????????????????????# # +! """ | | ???????????????#???????????# # # | | ???????????????# ????????# # # """"" | | ???????????????# ############+###g # """"" | | ???????????????# s s% g # """ | | ?????????????" + @ ghgg g # | | ???????????????# gscss ######+# | | ???????????????#k """ ######/#/###### ##????# # | | ???????????????## """ # #?# #???### # | | ?????????????????? """ u # ! #?# #???# | | ?????????????????? """ # ### ##### "" | | ?????????????????? ?# = + T | | ?????????????????? """ ?# ! ### ##### | | ?????????????????? """ ?# | #?# #???# | | ???????????????????""" ?# ###+####### # | | ????????????????????"" ??# # # # | | ????????????????????? ??# ! # """ """ + # | | ????????????????????? ??# # """ """ # # | | ????????????????????? "??# # """ """ + | | ?????????????????????"???# # ### | | ?????????????????????????# [ # ] ? ## | | ?????????????????????????###################???##! | | ???????????????????????????????????????????????##! | | ???????????????????????????????????????????????##[ | | ???????????????????????????????????????????????## | | ???????????????????????????????????????????????##] | | ??????????????????????????????????????????????### | | ??????????????????????????????????????????????#### | | ??????????????????????????????????????????????## | | ??????????????????????????????????????????????## | +----------------------------------------------------+ Best States ------------- Heat Dissipation 40 Energy Generation 18 Energy Capacity 310 Matter Stores 300 Matter Capacity 300 Sight Range 22 Robot Scan Range 15 Terrain Scan Density 10 Armor Coverage 225 Melee Speed Boost 20 Evasion (%) 72 Core Analysis 6 Force Boost 20 Salvage Targeting 2 Offensive Hacking 22 Item Schematics ----------------- Hcp. Storage Unit | -10/Materials | Hacked Carbon-fiber Leg | -9/Storage | Hacked Enh. Autogun | -8/Materials | Scanalyzed Cld. Deuterium Engine | -8/Materials | Scanalyzed Hrd. Medium Armor Plating | -8/Materials | Scanalyzed Cesium-ion Thruster | -7/Factory | Scanalyzed Transmission Jammer | -7/Factory | Scanalyzed Spear | -7/Factory | Hacked IFF Parser | -6/Factory | Hacked Imp. Hacking Suite | -6/Factory | Hacked Mic. Fission Core | -5/Factory | Scanalyzed Robot Schematics ------------------ None Fabricated ------------ Imp. Hacking Suite | x1 | -6/Factory Repaired ---------- Grenade Launcher | 63% | -10/Materials Seismic Detector | 20% | -9/Storage Maul | 33% | -9/Storage Great Maul | 64% | -8/Materials Cesium-ion Thruster | 16% | -7/Factory Mic. Fission Core | 28% | -6/Factory Alien Tech Used ----------------- None Achievements -------------- None Challenges ------------ None Game ------ Seed SpreadProtonMace Manual? 0 Play Time 01:53:08 Cumulative 216.5 hours Start 2025.08.03 @ 13:40:41 End 2025.08.03 @ 15:42:28 Sessions 1 Manual Loads 0 Difficulty Rogue Special Mode None Game No. 152 Rogue 152 Adventurer 0 Explorer 0 Win Type - Total 2 Types 2/0/0/0/0/0/0/0/0/0 Lore% 66 Gallery% 62 Achievement% 54 Wizard Run 0 Options --------- Layout 1 ASCII 0 Keyboard 0 Movement Mouse Keybinds 0 Fullscreen 1 Font 32/SmallcapsGlow Map View 50x35 Zoom Use 0% Tactical HUD 1 Map Filters NONE Filters NONE Steam 1 RUN: 74675704-ad79-4b3f-91f7-85b35044fb23